bitfinex-derivatives/quotes_BTCF0:USTF0_20250905
["timestamp","ask_amount","ask_price","bid_price","bid_amount"]
[1757060726040,0.7088298,112830.0,112820.0,0.36116]
[1757060726237,0.7088298,112830.0,112820.0,1.20016]
[1757060726543,0.478925,112830.0,112820.0,1.20016]
[1757060727243,0.478925,112830.0,112820.0,0.36116]
[1757060727542,0.9588298,112830.0,112820.0,0.36116]
[1757060727739,0.1120329,112820.0,112810.0,0.82387]
[1757060727941,0.49336542,112820.0,112810.0,0.49629]
[1757060728142,0.49336542,112820.0,112810.0,1.33521]
[1757060728344,0.97327022,112820.0,112810.0,0.49629]
[1757060728537,0.97327022,112820.0,112810.0,1.33521]
[1757060728730,0.74336542,112820.0,112810.0,1.33521]
[1757060728934,0.74336542,112820.0,112810.0,0.96521]
[1757060729141,0.74636542,112820.0,112810.0,1.33521]
[1757060729343,0.98441022,112820.0,112810.0,0.2248]
[1757060730035,0.98441022,112820.0,112810.0,0.25069]
[1757060730353,0.98441022,112820.0,112810.0,0.14]
[1757060730642,0.1120407,112810.0,112800.0,0.05964298]
[1757060730842,0.7027455,112810.0,112800.0,0.37944298]
[1757060731245,0.4728407,112810.0,112800.0,0.37944298]
[1757060731444,0.7027455,112810.0,112800.0,0.37944298]
[1757060732141,0.7027455,112810.0,112800.0,0.05944298]
[1757060732344,0.7037455,112810.0,112800.0,0.42944298]
[1757060733855,0.71256139,112810.0,112800.0,0.42944298]
[1757060734034,0.71256139,112810.0,112800.0,0.33795298]
[1757060734346,0.96256139,112810.0,112800.0,0.07795298]
[1757060740258,0.96256139,112810.0,112800.0,0.01795298]
[1757060741754,0.0886386,112800.0,112790.0,0.01642]
[1757060741954,0.72362712,112800.0,112790.0,0.41211]
[1757060742859,0.72362712,112800.0,112790.0,0.41411]
[1757060745561,0.72462712,112800.0,112790.0,0.41211]
[1757060745758,0.72462712,112800.0,112790.0,0.41311]
[1757060748262,0.49472232,112800.0,112790.0,0.41311]
[1757060748461,1.33296232,112800.0,112790.0,0.41311]
[1757060748760,1.56286712,112800.0,112790.0,0.41311]
[1757060748956,1.56286712,112800.0,112790.0,0.38722]
[1757060749157,1.56286712,112800.0,112790.0,0.41272]
[1757060749460,0.72462712,112800.0,112790.0,0.41272]
[1757060749661,1.56286712,112800.0,112790.0,0.41272]
[1757060750066,0.72462712,112800.0,112790.0,0.41272]
[1757060750254,1.56282712,112800.0,112790.0,0.41272]
[1757060753865,1.56266712,112800.0,112790.0,0.41272]
[1757060754265,0.49472232,112800.0,112790.0,0.41272]
[1757060754565,0.72462712,112800.0,112790.0,0.41272]
[1757060755468,0.75344967,112800.0,112790.0,0.41272]
[1757060756566,0.75344967,112800.0,112790.0,0.67144735]
[1757060757564,0.75244967,112800.0,112790.0,0.41272]
[1757060757770,0.75244967,112800.0,112790.0,0.41372]
[1757060760664,0.49372232,112800.0,112790.0,0.41372]
[1757060760974,1.01662702,112800.0,112790.0,0.372]
[1757060761872,1.59012967,112800.0,112790.0,0.41224]
[1757060763173,1.59012967,112800.0,112790.0,0.41024]
[1757060763366,1.59012967,112800.0,112790.0,0.41124]
[1757060763572,1.59112967,112800.0,112790.0,0.41124]
[1757060763872,1.33240232,112800.0,112790.0,0.41024]
[1757060764071,1.59112967,112800.0,112790.0,0.41024]
[1757060764670,1.84985702,112800.0,112790.0,0.41024]
[1757060766561,1.33240232,112800.0,112790.0,0.41024]
[1757060766762,1.84985702,112800.0,112790.0,0.41024]
[1757060771485,1.84985702,112800.0,112790.0,0.37]
[1757060771685,0.0886462,112790.0,112780.0,0.04023]
[1757060771884,0.72992355,112790.0,112780.0,0.38003]
[1757060773187,0.72992355,112790.0,112780.0,0.38103]
[1757060775678,0.72992355,112790.0,112780.0,0.35553]
[1757060775883,0.72992355,112790.0,112780.0,0.37982]
[1757060777294,1.05138361,112790.0,112780.0,0.34]
[1757060777498,1.05238361,112790.0,112780.0,0.34]
[1757060779603,1.88930361,112790.0,112780.0,0.36429]
[1757060780397,0.54365626,112790.0,112780.0,0.3781]
[1757060780701,0.4721962,112790.0,112780.0,0.90483739]
[1757060780899,0.4504462,112790.0,112780.0,0.90483739]
[1757060781100,0.4504462,112790.0,112780.0,0.99349149]
[1757060782301,0.4504462,112790.0,112780.0,0.64611004]
[1757060782503,0.4700662,112790.0,112780.0,0.90483739]
[1757060782702,0.4700662,112790.0,112780.0,0.90783739]
[1757060783001,0.72779355,112790.0,112780.0,0.90883739]
[1757060783801,0.72779355,112790.0,112780.0,0.99749149]
[1757060784397,0.72779355,112790.0,112780.0,0.90883739]
[1757060784799,0.4494462,112790.0,112780.0,0.73876414]
[1757060784994,0.4494462,112790.0,112780.0,0.99749149]
[1757060785493,0.3608,112790.0,112780.0,0.99749149]
[1757060787006,0.4494462,112790.0,112780.0,0.99749149]
[1757060787698,0.4494462,112790.0,112780.0,1.57528414]
[1757060787898,0.4494462,112790.0,112780.0,1.83401149]
[1757060788605,0.4494462,112790.0,112780.0,0.99749149]
[1757060788805,0.4685762,112790.0,112780.0,1.83401149]
[1757060789500,0.4685762,112790.0,112780.0,1.84288618]
[1757060789700,0.4685762,112790.0,112780.0,1.83401149]
[1757060790404,0.4494462,112790.0,112780.0,1.83401149]
[1757060793109,0.4685762,112790.0,112780.0,0.99749149]
[1757060793405,0.4685762,112790.0,112780.0,1.83373149]
[1757060796511,0.72730355,112790.0,112780.0,0.40011004]
[1757060798314,0.72730355,112790.0,112780.0,0.39911004]
[1757060799315,0.72730355,112790.0,112780.0,0.39611004]
[1757060799506,0.72730355,112790.0,112780.0,0.39711004]
[1757060805615,0.4685762,112790.0,112780.0,0.39711004]
[1757060805815,0.72730355,112790.0,112780.0,0.39711004]
[1757060814524,0.4494462,112790.0,112780.0,0.74449139]
[1757060815024,0.4669762,112790.0,112780.0,0.74449139]
[1757060815722,0.4494462,112790.0,112780.0,0.74449139]
[1757060816526,0.4494462,112790.0,112780.0,0.48576404]
[1757060816728,0.4494462,112790.0,112780.0,0.74449139]
[1757060817420,0.4494462,112790.0,112780.0,0.96567961]
[1757060820225,0.4669762,112790.0,112780.0,0.39711004]
[1757060820418,0.4669762,112790.0,112780.0,1.23183004]
[1757060821232,0.4669762,112790.0,112780.0,0.39711004]
[1757060821529,0.4669762,112790.0,112780.0,1.23183004]
[1757060821833,0.4669762,112790.0,112780.0,1.32048414]
[1757060823330,0.4669762,112790.0,112780.0,0.48576414]
[1757060823536,0.69689177,112790.0,112780.0,1.23167004]
[1757060824435,0.69689177,112790.0,112780.0,1.32032414]
[1757060824436,0.4669762,112790.0,112780.0,1.32032414]
[1757060824840,0.4669762,112790.0,112780.0,1.23167004]
[1757060825843,0.4669762,112790.0,112780.0,1.23159004]
[1757060826035,0.69689177,112790.0,112780.0,1.23159004]
[1757060826540,0.69689177,112790.0,112780.0,0.39711004]
[1757060830040,0.4669762,112790.0,112780.0,0.71567971]
[1757060830241,0.4494462,112790.0,112780.0,0.71567971]
[1757060830738,0.4669762,112790.0,112780.0,0.71567971]
[1757060831232,0.4669762,112790.0,112780.0,0.48576414]
[1757060852051,0.4669762,112790.0,112780.0,1.31860414]
[1757060852254,0.4494462,112790.0,112780.0,1.31860414]
[1757060852551,0.4494462,112790.0,112780.0,1.54851971]
[1757060852960,0.4494462,112790.0,112780.0,1.31860414]
[1757060853662,0.4494462,112790.0,112780.0,1.54851971]
[1757060854863,0.4494462,112790.0,112780.0,1.31860414]
[1757060855065,0.4494462,112790.0,112780.0,1.54851971]
[1757060858967,0.4494462,112790.0,112780.0,1.31860414]
[1757060861662,0.4645162,112790.0,112780.0,0.48576414]
[1757060861867,0.4645162,112790.0,112780.0,1.31812414]
[1757060865869,0.4645162,112790.0,112780.0,0.48576414]
[1757060866069,0.4645162,112790.0,112780.0,1.31792414]
[1757060873672,0.4494462,112790.0,112780.0,1.31792414]
[1757060873865,0.3608,112790.0,112780.0,1.54783971]
[1757060876476,0.4494463,112790.0,112780.0,1.54783971]
[1757060876673,0.3608,112790.0,112780.0,1.54783971]
[1757060876877,0.4494463,112790.0,112780.0,1.54783971]
[1757060877474,0.4494463,112790.0,112780.0,1.57659327]
[1757060880669,0.3608,112790.0,112780.0,1.57659327]
[1757060883683,0.4494463,112790.0,112780.0,1.57659327]
[1757060884384,0.4494463,112790.0,112780.0,1.31792414]
[1757060884579,0.3608,112790.0,112780.0,1.57659327]
[1757060884783,0.4495432,112800.0,112790.0,0.1257563]
[1757060885083,0.4494432,112800.0,112790.0,0.75442543]
[1757060885787,0.4628932,112800.0,112790.0,0.75442543]
[1757060885985,0.4638932,112800.0,112790.0,0.75442543]
[1757060886986,0.4504432,112800.0,112790.0,0.75442543]
[1757060887990,0.3618,112800.0,112790.0,0.75442543]
[1757060888198,0.3618,112800.0,112790.0,1.09789456]
[1757060888496,0.3618,112800.0,112790.0,1.09798894]
[1757060888684,0.3618,112800.0,112790.0,1.27185807]
[1757060889595,0.001,112800.0,112790.0,0.75451981]
[1757060889796,0.001,112800.0,112790.0,1.84378894]
[1757060890101,0.3609,112810.0,112800.0,0.1257485]
[1757060890286,0.3608,112810.0,112800.0,0.72234595]
[1757060891396,0.3628,112810.0,112800.0,0.72234595]
[1757060891596,0.3628,112810.0,112800.0,0.98101508]
[1757060891895,0.002,112810.0,112800.0,1.23101508]
[1757060892092,0.003,112810.0,112800.0,1.23101508]
[1757060893701,0.003,112810.0,112800.0,1.31581508]
[1757060893998,0.3609,112820.0,112810.0,0.1257406]
[1757060894301,0.3608,112820.0,112810.0,1.59472973]
[1757060895099,0.3608,112820.0,112810.0,1.59772973]
[1757060895694,0.3608,112820.0,112810.0,1.59972973]
[1757060895896,0.3608,112820.0,112810.0,0.76940973]
[1757060896094,0.3608,112820.0,112810.0,1.59956973]
[1757060896600,0.3608,112820.0,112810.0,0.76940973]
[1757060896800,0.3608,112820.0,112810.0,1.59948973]
[1757060897395,0.4495197,112830.0,112820.0,0.1247827]
[1757060897590,0.4494197,112830.0,112820.0,0.76345183]
[1757060897993,0.4494197,112830.0,112820.0,0.5047827]
[1757060898193,0.4494197,112830.0,112820.0,0.76345183]
[1757060898392,0.70808883,112830.0,112820.0,1.59345183]
[1757060898800,0.70808883,112830.0,112820.0,1.59545183]
[1757060899102,0.4494197,112830.0,112820.0,1.59545183]
[1757060899598,0.4673197,112830.0,112820.0,0.76545183]
[1757060899797,0.72598883,112830.0,112820.0,0.42016]
[1757060899995,0.72598883,112830.0,112820.0,1.50870913]
[1757060900198,0.4673197,112830.0,112820.0,1.50870913]
[1757060900400,0.72598883,112830.0,112820.0,1.50870913]
[1757060900596,0.72598883,112830.0,112820.0,0.67882913]
[1757060900802,0.72598883,112830.0,112820.0,1.50866913]
[1757060902202,0.72598883,112830.0,112820.0,1.59729193]
[1757060906310,0.4673197,112830.0,112820.0,1.59729193]
[1757060906607,0.72598883,112830.0,112820.0,1.59729193]
[1757060907611,0.4673197,112830.0,112820.0,1.59729193]
[1757060907810,0.72598883,112830.0,112820.0,1.59729193]
[1757060910515,0.72598883,112830.0,112820.0,1.3386228]
[1757060910703,0.72598883,112830.0,112820.0,1.59729193]
[1757060910903,0.72598883,112830.0,112820.0,0.76745193]
[1757060911109,0.72598883,112830.0,112820.0,1.59657193]
[1757060913613,0.72598883,112830.0,112820.0,1.3379028]
[1757060913803,0.72598883,112830.0,112820.0,1.59657193]
[1757060914814,0.72598883,112830.0,112820.0,1.3379028]
[1757060915111,0.72598883,112830.0,112820.0,1.59657193]
[1757060923517,0.4673197,112830.0,112820.0,1.59657193]
[1757060923719,0.72598883,112830.0,112820.0,1.59657193]
[1757060924016,0.72598883,112830.0,112820.0,1.3379028]
[1757060924316,0.72598883,112830.0,112820.0,1.59657193]
[1757060925318,0.72602883,112830.0,112820.0,1.59657193]
[1757060926716,0.72602883,112830.0,112820.0,1.59569193]
[1757060927420,0.4673597,112830.0,112820.0,1.59569193]
[1757060927821,0.4673597,112830.0,112820.0,1.3370228]
[1757060928018,0.4673597,112830.0,112820.0,1.59569193]
[1757060928715,0.4673597,112830.0,112820.0,0.76745193]
[1757060928928,0.72602883,112830.0,112820.0,0.42016]
[1757060929220,0.72602883,112830.0,112820.0,1.24816]
[1757060929721,0.98469796,112830.0,112820.0,0.88816]
[1757060929911,0.98469796,112830.0,112820.0,0.06016]
[1757060930107,2.06265796,112830.0,112820.0,0.06016]
[1757060930425,2.06265796,112830.0,112820.0,0.01681]
[1757060930612,2.06265796,112830.0,112820.0,0.004]
[1757060931318,2.06265796,112830.0,112820.0,0.002]
[1757060931520,2.06265796,112830.0,112820.0,0.003]
[1757060931820,2.06265796,112830.0,112820.0,0.001]
[1757060937421,1.77521516,112830.0,112820.0,0.001]
[1757060937624,0.7173597,112830.0,112820.0,0.03646]
[1757060937825,1.77477516,112830.0,112820.0,0.03646]
[1757060940327,0.94725516,112830.0,112820.0,0.03646]
[1757060940512,1.77481516,112830.0,112820.0,0.03646]
[1757060941226,1.52481516,112830.0,112820.0,0.03646]
[1757060941726,0.69725516,112830.0,112820.0,0.03646]
[1757060941929,1.52469516,112830.0,112820.0,0.03646]
[1757060943629,1.2947997,112830.0,112820.0,0.03646]
[1757060943818,1.52469516,112830.0,112820.0,0.03646]
[1757060944727,0.69725516,112830.0,112820.0,0.03646]
[1757060944933,1.52453516,112830.0,112820.0,0.03646]
[1757060945230,1.52449516,112830.0,112820.0,0.03646]
[1757060946124,1.2945997,112830.0,112820.0,0.03646]
[1757060946327,1.52449516,112830.0,112820.0,0.001]
[1757060948130,1.77449516,112830.0,112820.0,0.001]
[1757060949534,0.104773,112820.0,112810.0,0.0001]
[1757060949725,0.0886309,112810.0,112800.0,0.05342832]
[1757060949926,0.69547636,112810.0,112800.0,0.45186702]
[1757060952031,0.69547636,112810.0,112800.0,0.4339387]
[1757060952234,0.69547636,112810.0,112800.0,0.4359387]
[1757060952423,0.69547636,112810.0,112800.0,0.4369387]
[1757060955631,0.4655809,112810.0,112800.0,0.4369387]
[1757060955834,0.69547636,112810.0,112800.0,0.4369387]
[1757060960336,0.69547636,112810.0,112800.0,0.3483]
[1757060960935,0.69547636,112810.0,112800.0,0.4369387]
[1757060967741,0.4655809,112810.0,112800.0,0.4369387]
[1757060967942,0.69547636,112810.0,112800.0,0.4369387]
[1757060972544,0.4655809,112810.0,112800.0,0.4369387]
[1757060972742,0.69547636,112810.0,112800.0,0.4369387]
[1757060973338,0.4655809,112810.0,112800.0,0.4369387]
[1757060973544,0.69547636,112810.0,112800.0,0.4369387]
[1757060975146,0.4655809,112810.0,112800.0,0.4369387]
[1757060976744,0.69547636,112810.0,112800.0,0.4369387]
[1757060978547,0.69547636,112810.0,112800.0,0.4369388]
[1757060980651,0.4655809,112810.0,112800.0,0.4369388]
[1757060980851,0.69547636,112810.0,112800.0,0.4369388]
[1757060982251,0.4655809,112810.0,112800.0,0.4369388]
[1757060982452,0.69547636,112810.0,112800.0,0.4369388]
[1757060983447,0.69547636,112810.0,112800.0,0.3483]
[1757060983647,0.69547636,112810.0,112800.0,0.4369388]
[1757060986656,0.4655809,112810.0,112800.0,0.4369388]
[1757060986856,0.69547636,112810.0,112800.0,0.4369388]
[1757060991355,0.69547636,112810.0,112800.0,0.3483]
[1757060991651,0.71587115,112810.0,112800.0,0.313]
[1757060991855,0.71587115,112810.0,112800.0,0.063]
[1757060992051,0.48597569,112810.0,112800.0,0.063]
[1757060992257,0.71587115,112810.0,112800.0,0.08521]
[1757060992458,0.71587115,112810.0,112800.0,0.02521]
[1757060992755,0.71587115,112810.0,112800.0,0.001]
[1757060992955,0.71587115,112810.0,112800.0,0.003]
[1757060993543,0.71587115,112810.0,112800.0,0.02421]
[1757060993757,0.71587115,112810.0,112800.0,0.03698]
[1757060994057,1.54083115,112810.0,112800.0,0.03598]
[1757060994257,1.54075115,112810.0,112800.0,0.03598]
[1757060999464,1.56956785,112810.0,112800.0,0.03598]
[1757061006171,0.74468785,112810.0,112800.0,0.01377]
[1757061006373,0.4655809,112810.0,112800.0,0.67469216]
[1757061006561,0.4655809,112810.0,112800.0,0.76333096]
[1757061006766,0.72429306,112810.0,112800.0,0.5046188]
[1757061006965,0.72429306,112810.0,112800.0,0.76333096]
[1757061008969,0.3608,112810.0,112800.0,1.01333096]
[1757061009168,0.3608,112810.0,112800.0,1.27204312]
[1757061009373,0.38192032,112820.0,112810.0,0.1236108]
[1757061009573,0.38182032,112820.0,112810.0,0.75232296]
[1757061009876,0.38182032,112820.0,112810.0,0.76108921]
[1757061010269,0.38182032,112820.0,112810.0,0.75232296]
[1757061011570,0.38182032,112820.0,112810.0,0.4936108]
[1757061011775,0.38182032,112820.0,112810.0,0.75232296]
[1757061012075,0.38282032,112820.0,112810.0,0.75232296]
[1757061012682,0.38282032,112820.0,112810.0,0.4936108]
[1757061012882,0.38282032,112820.0,112810.0,0.75232296]
[1757061013280,0.38282032,112820.0,112810.0,0.75432296]
[1757061013480,0.38282032,112820.0,112810.0,0.4956108]
[1757061013681,0.38182032,112820.0,112810.0,0.75432296]
[1757061013974,0.38182032,112820.0,112810.0,0.4986108]
[1757061014180,0.38182032,112820.0,112810.0,0.75732296]
[1757061014881,0.38182032,112820.0,112810.0,0.76610691]
[1757061016681,0.38182032,112820.0,112810.0,0.50739475]
[1757061016882,0.38182032,112820.0,112810.0,0.76610691]
[1757061017282,0.38182032,112820.0,112810.0,0.50739475]
[1757061017477,0.47044342,112820.0,112810.0,0.76610691]
[1757061017981,0.47044342,112820.0,112810.0,0.4986108]
[1757061018184,0.47044342,112820.0,112810.0,1.58120296]
[1757061018377,0.47044342,112820.0,112810.0,1.58989821]
[1757061019387,0.47044342,112820.0,112810.0,1.58120296]
[1757061019685,0.47044342,112820.0,112810.0,1.58116296]
[1757061020384,0.47044342,112820.0,112810.0,1.3224508]
[1757061020586,0.47044342,112820.0,112810.0,0.75732296]
[1757061020885,0.47044342,112820.0,112810.0,1.58104296]
[1757061021186,0.48659342,112820.0,112810.0,1.58104296]
[1757061021485,0.48659342,112820.0,112810.0,0.75732296]
[1757061021687,0.74530558,112820.0,112810.0,0.75732306]
[1757061021981,0.48659342,112820.0,112810.0,1.49237216]
[1757061022181,0.74530558,112820.0,112810.0,1.49233216]
[1757061022686,0.74530558,112820.0,112810.0,0.66869216]
[1757061022885,0.74530558,112820.0,112810.0,1.23362]
[1757061023081,0.99530558,112820.0,112810.0,0.40998]
[1757061023288,1.81890558,112820.0,112810.0,0.005]
[1757061024485,1.81890558,112820.0,112810.0,0.004]
[1757061024981,1.81890558,112820.0,112810.0,0.003]
[1757061025989,1.81890558,112820.0,112810.0,0.002]
[1757061026687,1.81890558,112820.0,112810.0,0.001]
[1757061027085,0.1047809,112810.0,112800.0,0.11176002]
[1757061027286,0.98898522,112810.0,112800.0,0.11156002]
[1757061027583,1.81242522,112810.0,112800.0,0.11156002]
[1757061028489,1.81342522,112810.0,112800.0,0.11156002]
[1757061036197,1.81318522,112810.0,112800.0,0.11156002]
[1757061037292,0.0886387,112800.0,112790.0,0.01369]
[1757061037596,0.98301302,112800.0,112790.0,0.35626]
[1757061038298,1.80617302,112800.0,112790.0,0.35626]
[1757061038495,1.80617302,112800.0,112790.0,0.35726]
[1757061042897,2.16697302,112800.0,112790.0,0.35726]
[1757061048602,2.16653302,112800.0,112790.0,0.35726]
[1757061051799,1.6491087,112800.0,112790.0,0.35726]
[1757061052106,2.16653302,112800.0,112790.0,0.35726]
[1757061052405,1.34381302,112800.0,112790.0,0.35726]
[1757061052702,2.16633302,112800.0,112790.0,0.35726]
[1757061053303,0.8263887,112800.0,112790.0,0.35726]
[1757061053495,2.16629302,112800.0,112790.0,0.35726]
[1757061053696,1.34381302,112800.0,112790.0,0.35726]
[1757061053997,2.16629302,112800.0,112790.0,0.35726]
[1757061055807,1.34381302,112800.0,112790.0,0.35726]
[1757061056006,2.16629302,112800.0,112790.0,0.35726]
[1757061056607,1.6488687,112800.0,112790.0,0.35726]
[1757061056806,2.16629302,112800.0,112790.0,0.35726]
[1757061058607,1.34381302,112800.0,112790.0,0.35726]
[1757061058908,2.16605302,112800.0,112790.0,0.35726]
[1757061059405,1.90734086,112800.0,112790.0,0.35726]
[1757061059608,1.6486287,112800.0,112790.0,0.35726]
[1757061059811,1.87861345,112800.0,112790.0,0.35726]
[1757061061699,1.87865345,112800.0,112790.0,0.35726]
[1757061063017,1.05641345,112800.0,112790.0,0.35726]
[1757061063204,1.87845345,112800.0,112790.0,0.35726]
[1757061065014,1.05641345,112800.0,112790.0,0.35726]
[1757061065316,0.8264287,112800.0,112790.0,0.35726]
[1757061065609,0.72164,112800.0,112790.0,0.94417555]
[1757061065808,0.72164,112800.0,112790.0,0.85552885]
[1757061066312,0.72164,112800.0,112790.0,0.94417555]
[1757061066614,0.72164,112800.0,112790.0,1.76609555]
[1757061069017,0.72164,112800.0,112790.0,1.5361108]
[1757061069222,0.72164,112800.0,112790.0,1.76609555]
[1757061070117,0.72164,112800.0,112790.0,1.5361108]
[1757061070323,0.8102789,112800.0,112790.0,1.76585555]
[1757061070510,0.8264289,112800.0,112790.0,0.6255441]
[1757061070814,0.8264289,112800.0,112790.0,1.4472241]
[1757061071721,0.8264289,112800.0,112790.0,1.5358708]
[1757061073715,0.8102789,112800.0,112790.0,1.5358708]
[1757061073919,0.8102789,112800.0,112790.0,1.76585555]
[1757061074321,0.72164,112800.0,112790.0,1.76585555]
[1757061074722,0.8102788,112800.0,112790.0,1.76585555]
[1757061075921,0.8264288,112800.0,112790.0,0.7141908]
[1757061076125,0.8264288,112800.0,112790.0,1.5356708]
[1757061076311,0.8264288,112800.0,112790.0,1.76565555]
[1757061076820,0.8264288,112800.0,112790.0,1.5356708]
[1757061077120,0.8264288,112800.0,112790.0,1.76565555]
[1757061078110,0.8264288,112800.0,112790.0,1.5354708]
[1757061081020,0.8102788,112800.0,112790.0,1.5354708]
[1757061081926,0.8102788,112800.0,112790.0,1.76545555]
[1757061082430,0.8102788,112800.0,112790.0,0.94417555]
[1757061082618,0.8264288,112800.0,112790.0,1.76525555]
[1757061084322,0.8102788,112800.0,112790.0,1.76525555]
[1757061090334,1.05641355,112800.0,112790.0,0.4641908]
[1757061090551,1.05641355,112800.0,112790.0,1.2849914]
[1757061090748,0.8264288,112800.0,112790.0,1.2849914]
[1757061100259,0.8264288,112800.0,112790.0,1.51497615]
[1757061100860,0.8264288,112800.0,112790.0,1.2849914]
[1757061102254,0.8264288,112800.0,112790.0,1.2844714]
[1757061103263,0.8264288,112800.0,112790.0,1.2864714]
[1757061109971,0.8264288,112800.0,112790.0,0.4661914]
[1757061110171,0.8264288,112800.0,112790.0,1.51609615]
[1757061110573,0.8264288,112800.0,112790.0,1.2861114]
[1757061110770,0.8264288,112800.0,112790.0,1.51609615]
[1757061111274,0.8264288,112800.0,112790.0,1.2861114]
[1757061111571,0.8264288,112800.0,112790.0,1.51609615]
[1757061112272,0.8264288,112800.0,112790.0,1.2861114]
[1757061112463,0.8264288,112800.0,112790.0,1.51609615]
[1757061112663,0.8264288,112800.0,112790.0,0.69617615]
[1757061112865,0.8264288,112800.0,112790.0,0.4661914]
[1757061113070,0.8264288,112800.0,112790.0,1.2859514]
[1757061115272,0.8264288,112800.0,112790.0,1.51593615]
[1757061115773,0.4656288,112800.0,112790.0,1.51593615]
[1757061116687,0.4656288,112800.0,112790.0,0.69617615]
[1757061116872,0.4656288,112800.0,112790.0,1.51585615]
[1757061117174,0.4656288,112800.0,112790.0,0.69617615]
[1757061117472,0.4656288,112800.0,112790.0,1.2857914]
[1757061119868,0.4656288,112800.0,112790.0,0.4661914]
[1757061120173,0.4656288,112800.0,112790.0,1.2857114]
[1757061121475,0.4656288,112800.0,112790.0,1.54436503]
[1757061124983,0.4656288,112800.0,112790.0,0.72484503]
[1757061125176,0.4656288,112800.0,112790.0,1.54416503]
[1757061125376,0.72428243,112800.0,112790.0,1.54416503]
[1757061127182,0.72428243,112800.0,112790.0,1.2855114]
[1757061127380,1.25389626,112800.0,112790.0,0.35926]
[1757061127586,2.07309626,112800.0,112790.0,0.35926]
[1757061128881,2.07309626,112800.0,112790.0,0.35826]
[1757061130291,2.07309626,112800.0,112790.0,0.35626]
[1757061132687,2.07721626,112800.0,112790.0,0.32]
[1757061133185,2.07309626,112800.0,112790.0,0.34144]
[1757061142193,2.07309626,112800.0,112790.0,0.35521]
[1757061143295,1.82309626,112800.0,112790.0,0.35521]
[1757061143991,2.07309626,112800.0,112790.0,0.33377]
[1757061144193,2.07721626,112800.0,112790.0,0.32]
[1757061149397,2.07721626,112800.0,112790.0,0.2395522]
[1757061149603,0.1047972,112790.0,112780.0,0.0002]
[1757061149794,0.1048051,112780.0,112770.0,0.14287156]
[1757061149993,1.54269873,112780.0,112770.0,0.49565156]
[1757061150591,1.54169873,112780.0,112770.0,0.49565156]
[1757061150995,1.54169873,112780.0,112770.0,0.45507002]
[1757061151498,1.62040671,112780.0,112770.0,0.48295002]
[1757061152304,0.80196671,112780.0,112770.0,0.48295002]
[1757061152504,1.62036671,112780.0,112770.0,0.48295002]
[1757061153508,1.62032671,112780.0,112770.0,0.48295002]
[1757061153805,0.79291671,112780.0,112770.0,0.48295002]
[1757061154102,1.61127671,112780.0,112770.0,0.48295002]
[1757061157207,1.61127671,112780.0,112770.0,0.37139]
[1757061166714,0.79291671,112780.0,112770.0,0.37139]
[1757061166914,1.61087671,112780.0,112770.0,0.37139]
[1757061167414,1.35222308,112780.0,112770.0,0.37139]
[1757061167607,1.61087671,112780.0,112770.0,0.37139]
[1757061167802,0.79291671,112780.0,112770.0,0.37139]
[1757061168116,1.61083671,112780.0,112770.0,0.37139]
[1757061169814,0.79291671,112780.0,112770.0,0.37139]
[1757061170009,1.61079671,112780.0,112770.0,0.37139]
[1757061170414,0.79291671,112780.0,112770.0,0.37139]
[1757061170617,1.61075671,112780.0,112770.0,0.37139]
[1757061171610,0.79291671,112780.0,112770.0,0.37139]
[1757061171806,0.3608,112780.0,112770.0,0.96870653]
[1757061172305,0.3608,112780.0,112770.0,2.04516016]
[1757061172710,0.3608,112780.0,112770.0,1.5278529]
[1757061172911,0.3608,112780.0,112770.0,2.04516016]
[1757061173615,0.38118125,112790.0,112780.0,0.0886551]
[1757061173817,0.38108125,112790.0,112780.0,0.69282873]
[1757061174815,0.46972845,112790.0,112780.0,0.4341751]
[1757061175010,0.74453208,112790.0,112780.0,1.2528551]
[1757061175206,0.74453208,112790.0,112780.0,1.51150873]
[1757061175511,0.74453208,112790.0,112780.0,1.51250873]
[1757061176226,0.74453208,112790.0,112780.0,1.51350873]
[1757061177017,0.74453208,112790.0,112780.0,1.51550873]
[1757061177413,0.48587845,112790.0,112780.0,1.51550873]
[1757061178319,0.46972845,112790.0,112780.0,1.51550873]
[1757061181520,0.38108125,112790.0,112780.0,1.48680199]
[1757061182817,0.38108125,112790.0,112780.0,1.73680199]
[1757061182818,0.02028125,112790.0,112780.0,1.73680199]
[1757061183225,0.3819002,112800.0,112790.0,0.14239368]
[1757061183424,0.3818002,112800.0,112790.0,1.54966057]
[1757061184722,0.3818002,112800.0,112790.0,1.55066057]
[1757061185620,0.3818002,112800.0,112790.0,0.73334057]
[1757061185819,0.3818002,112800.0,112790.0,1.56055859]
[1757061186528,0.3818002,112800.0,112790.0,1.55955859]
[1757061186722,0.3818002,112800.0,112790.0,1.56155859]
[1757061187327,0.3818002,112800.0,112790.0,1.56355859]
[1757061187826,0.3818002,112800.0,112790.0,1.56255859]
[1757061188124,0.3818002,112800.0,112790.0,1.56355859]
[1757061189634,0.3818002,112800.0,112790.0,0.74631859]
[1757061189926,0.3818002,112800.0,112790.0,1.56339859]
[1757061192535,0.0210002,112800.0,112790.0,1.56339859]
[1757061193632,0.0210002,112800.0,112790.0,1.64803859]
[1757061196129,0.0210002,112800.0,112790.0,0.83111859]
[1757061196426,0.0210002,112800.0,112790.0,1.64795859]
[1757061196738,0.0210002,112800.0,112790.0,0.83111859]
[1757061197032,0.3609,112810.0,112800.0,0.1228194]
[1757061197330,0.3608,112810.0,112800.0,0.71276629]
[1757061197630,0.3608,112810.0,112800.0,1.52956629]
[1757061198129,0.38194192,112820.0,112810.0,0.1228115]
[1757061198329,0.38184192,112820.0,112810.0,0.73275839]
[1757061199332,0.38184192,112820.0,112810.0,1.54947839]
[1757061200024,0.38184192,112820.0,112810.0,1.54943839]
[1757061200333,0.38184192,112820.0,112810.0,0.5028115]
[1757061200630,0.38184192,112820.0,112810.0,1.54939839]
[1757061200831,0.38184192,112820.0,112810.0,1.3194515]
[1757061201233,0.38184192,112820.0,112810.0,1.3214515]
[1757061201432,0.38184192,112820.0,112810.0,1.3234515]
[1757061201733,0.38184192,112820.0,112810.0,1.55339839]
[1757061202233,0.38184192,112820.0,112810.0,1.3234515]
[1757061204237,0.38184192,112820.0,112810.0,0.5068115]
[1757061204436,0.38184192,112820.0,112810.0,1.3233315]
[1757061204934,0.38184192,112820.0,112810.0,0.5068115]
[1757061205138,0.38184192,112820.0,112810.0,1.55223839]
[1757061205640,0.3608,112820.0,112810.0,1.55223839]
[1757061206338,0.3608,112820.0,112810.0,0.73575839]
[1757061206538,0.3608,112820.0,112810.0,1.55015839]
[1757061206746,0.3608,112820.0,112810.0,1.55115839]
[1757061207133,0.3608,112820.0,112810.0,1.55015839]
[1757061207333,0.3608,112820.0,112810.0,1.54915839]
[1757061207534,0.3608,112820.0,112810.0,1.55115839]